fUSD/lending_fUSD_20240218
["ID","MTS","AMOUNT","RATE_DAILY","PERIOD"]
[314399112,1708283439522,-961.04996926,0.00037,2]
[314399113,1708283439531,-1323.86211868,0.00037,2]
[314399114,1708283439540,-8000.0,0.00037,2]
[314399115,1708283439550,-264.90992484,0.00037,2]
[314399116,1708283439562,-192.73739864,0.00037,2]
[314399117,1708283439571,-1200.18593731,0.00037,2]
[314399118,1708283439581,-5429.1,0.00037075,2]
[314399119,1708283439590,-585.96432036,0.0003709,2]
[314399120,1708283439600,-585.96432036,0.0003709,2]
[314399121,1708283439610,-229.81629426,0.00037096,7]
[314399122,1708283439620,-189.76389637,0.00037096,7]
[314399123,1708283439629,-688399.77587552,0.000371,3]
[314399124,1708283439647,-405563.82825111,0.000371,3]
[314399125,1708283439659,-500.20105079,0.000371,3]
[314399126,1708283439679,-641.6346694,0.00035616,2]
[314399127,1708283439689,-4558.06659024,0.000371,3]
[314399128,1708283439701,-199773.89698216,0.000371,3]
[314399129,1708283439711,-194.33063471,0.000371,2]
[314399130,1708283439720,-199.30256441,0.000371,2]
[314399131,1708283439730,-8006.0185177,0.000371,2]
[314399132,1708283439739,-161.28925182,0.00037135,10]
[314399133,1708283439749,-8318.33840876,0.00037233,2]
[314399134,1708283439758,-1097.93,0.00037293,2]
[314399135,1708283439767,-152.71199376,0.00037304,2]
[314399136,1708283439776,-542.44322807,0.00037352,2]
[314399137,1708283439785,-2240.8025093,0.00037374,2]
[314399138,1708283439795,-169.68,0.00037397,2]
[314399139,1708283439804,-154.28,0.00037443,2]
[314399140,1708283439813,-35275.20596214,0.00037489,2]
[314399141,1708283439822,-150.0,0.00037499,2]
[314399142,1708283439831,-181.13999004,0.00037499,2]
[314399143,1708283439841,-94159.11697678,0.000375,5]
[314399144,1708283439850,-2000.0,0.000375,2]
[314399145,1708283439862,-15000.0,0.000375,2]
[314399146,1708283439872,-515.18351411,0.00037548,2]
[314399147,1708283439881,-4061.52711931,0.0003759,2]
[314399148,1708283439891,-2145.23032,0.0003759,2]
[314399149,1708283439900,-161.28925182,0.00037596,10]
[314399150,1708283439909,-1017.6414,0.00037599,2]
[314399151,1708283439919,-1000.0,0.00037608,2]
[314399152,1708283439929,-1031.57,0.00037666,2]
[314399153,1708283439938,-180.0,0.00037671,2]
[314399154,1708283439947,-267.48491258,0.00037685,2]
[314399155,1708283439958,-44333.5226239,0.00037697,2]
[314399156,1708283439967,-300.0,0.000377,2]
[314399157,1708283439976,-3212.06332917,0.00037725,28]
[314399158,1708283439986,-1000.0,0.00037758,10]
[314399159,1708283439995,-5973.0043347,0.00037792,4]
[314399160,1708283440005,-400.0,0.00037792,3]
[314399161,1708283440014,-400.0,0.00037792,3]
[314399162,1708283440023,-400.0,0.00037792,3]
[314399163,1708283440032,-400.0,0.00037792,3]
[314399164,1708283440042,-500.0,0.00037792,2]
[314399165,1708283440051,-2145.23032,0.00037793,2]
[314399166,1708283440060,-150.1,0.000378,3]
[314399167,1708283440070,-566.24,0.000378,2]
[314399168,1708283440080,-150.0,0.00037841,2]
[314399169,1708283440089,-1000.0,0.00037893,10]
[314399170,1708283440098,-1000.0,0.00037893,10]
[314399171,1708283440108,-1000.0,0.00037893,10]
[314399172,1708283440117,-235.71138451,0.00037893,2]
[314399173,1708283440127,-1000.0,0.00037893,10]
[314399174,1708283440136,-1073.54761128,0.00037893,5]
[314399175,1708283440145,-163.54295495,0.00037893,5]
[314399176,1708283440155,-418.22852253,0.00037893,5]
[314399177,1708283440164,-1000.0,0.00037893,10]
[314399178,1708283440174,-4492.54846447,0.00037893,6]
[314399179,1708283440183,-2492.37747416,0.00037893,7]
[314399180,1708283440192,-6326.35014112,0.00037893,7]
[314399181,1708283440201,-1000.0,0.00037893,10]
[314399182,1708283440211,-316.31750706,0.00037893,5]
[314399183,1708283440220,-1000.0,0.00037893,10]
[314399184,1708283440229,-1000.0,0.00037893,10]
[314399185,1708283440239,-546.59008903,0.00037893,5]
[314399186,1708283440248,-1000.0,0.00037893,10]
[314399187,1708283440257,-5157.77470575,0.00037893,7]
[314399188,1708283440267,-3094.70540743,0.00037893,7]
[314399189,1708283440276,-601.94567824,0.00037893,6]
[314399190,1708283440285,-361.74972241,0.00037893,6]
[314399191,1708283440295,-1000.0,0.00037893,10]
[314399192,1708283440304,-4873.1640154,0.00037893,7]
[314399193,1708283440313,-1000.0,0.00037893,10]
[314399194,1708283440322,-668.83089377,0.00037893,2]
[314399195,1708283440331,-1835.4557841,0.00037893,6]
[314399196,1708283440340,-1000.0,0.00037893,10]
[314399197,1708283440350,-1423.80095593,0.00037893,6]
[314399198,1708283440359,-1000.0,0.00037893,10]
[314399199,1708283440368,-1000.0,0.00037893,10]
[314399200,1708283440377,-156.32,0.00037898,2]
[314399201,1708283440390,-307169.89568023,0.000379,3]
[314399202,1708283440411,-304.50484102,0.000379,3]
[314399203,1708283440423,-920.38776113,0.000379,3]
[314399204,1708283440435,-14368.57331239,0.000379,3]
[314399205,1708283440450,-49901.93642007,0.000379,3]
[314399206,1708283440711,-281.513886,0.00035,2]
[314399207,1708283440721,-117.29845008,0.00035,2]
[314399208,1708283440742,-164.21543592,0.00035,2]
[314399209,1708283440751,-281.513886,0.00035,2]
[314399210,1708283440761,-24.30878325,0.00035,2]
[314399212,1708283441182,-257.20510275,0.00035,2]
[314399214,1708283441191,-281.513886,0.00035,2]
[314399215,1708283441201,-281.513886,0.00035,2]
[314399217,1708283441210,-281.513886,0.00035,2]
[314399219,1708283441220,-281.513886,0.00035058,2]
[314399221,1708283441229,-281.513886,0.00035058,2]
[314399223,1708283441239,-281.513886,0.00035058,2]
[314399226,1708283441248,-500.0,0.00035616,2]
[314399227,1708283441258,-381.95,0.00035616,2]
[314399228,1708283441267,-5659.86453881,0.00036798,2]
[314399229,1708283441276,-283282.84837716,0.000379,3]
[314399230,1708283441286,-2145.23033,0.0003791,2]
[314399231,1708283441295,-150.0,0.00037925,2]
[314399232,1708283441304,-150.0,0.00037925,2]
[314399233,1708283441314,-150.0,0.00037925,2]
[314399234,1708283441323,-150.0,0.00037947,2]
[314399235,1708283441332,-150.0,0.00037973,2]
[314399236,1708283441341,-500.0,0.00037989,2]
[314399237,1708283441351,-21884.21545813,0.0003799,12]
[314399238,1708283441360,-16228.46596013,0.0003799,14]
[314399239,1708283441369,-11149.92459231,0.0003799,12]
[314399240,1708283441378,-23629.69980862,0.0003799,14]
[314399241,1708283441387,-31338.70956017,0.0003799,14]
[314399242,1708283441396,-8281.16229204,0.0003799,12]
[314399243,1708283441406,-19557.1183272,0.00038,10]
[314399244,1708283441415,-155.0,0.00038,4]
[314399245,1708283441425,-1000.0,0.00038,2]
[314399246,1708283441434,-10000.0,0.00038,14]
[314399247,1708283441444,-150.0,0.00038025,2]
[314399248,1708283441453,-161.28925182,0.00038057,11]
[314399249,1708283441462,-152.71199376,0.00038129,2]
[314399250,1708283441472,-156.32,0.00038154,2]
[314399251,1708283441482,-157.7559583,0.00038186,8]
[314399252,1708283441491,-2145.23032,0.0003822,2]
[314399253,1708283441501,-542.44322807,0.00038284,2]
[314399254,1708283441510,-205.33720716,0.00038323,2]
[314399255,1708283441520,-150.0,0.00038351,2]
[314399256,1708283441530,-181.13999004,0.00038351,2]
[314399257,1708283441538,-5429.1,0.00038352,2]
[314399258,1708283441548,-264.3475,0.00038356,2]
[314399259,1708283441559,-517.26,0.00038356,15]
[314399260,1708283441569,-150.0,0.00038356,2]
[314399261,1708283441579,-283.96,0.00038356,2]
[314399262,1708283441588,-155.0,0.0003837,2]
[314399263,1708283441599,-625.0,0.000384,2]
[314399264,1708283441794,-4000.0,0.000384,2]
[314399265,1708283441809,-156.32,0.0003841,2]
[314399266,1708283441820,-3212.06332917,0.0003845,29]
[314399267,1708283441830,-961.04996925,0.0003845,2]
[314399268,1708283441840,-264.90992483,0.0003845,2]
[314399269,1708283441850,-192.73739862,0.0003845,2]
[314399270,1708283441860,-1200.18593731,0.0003845,2]
[314399271,1708283441870,-817.54,0.00038455,2]
[314399272,1708283441880,-161.28925182,0.00038518,12]
[314399273,1708283441890,-500.0,0.0003853,2]
[314399274,1708283441900,-400.0,0.0003853,2]
[314399275,1708283441910,-500.0,0.0003853,2]
[314399276,1708283441920,-500.0,0.0003853,2]
[314399277,1708283441929,-500.0,0.0003853,2]
[314399278,1708283441939,-500.0,0.0003853,2]
[314399279,1708283441949,-500.0,0.0003853,2]
[314399280,1708283441959,-500.0,0.0003853,2]
[314399281,1708283441969,-500.0,0.0003853,2]
[314399282,1708283441979,-500.0,0.0003853,2]
[314399283,1708283441988,-500.0,0.0003853,2]
[314399284,1708283441998,-500.0,0.0003853,2]
[314399285,1708283442007,-500.0,0.0003853,2]
[314399286,1708283442018,-500.0,0.0003853,2]
[314399287,1708283442027,-500.0,0.0003853,2]
[314399288,1708283442038,-2145.23033,0.0003853,2]
[314399289,1708283442047,-150.0,0.00038539,2]
[314399290,1708283442058,-500.0,0.00038566,2]
[314399291,1708283442068,-500.0,0.00038566,2]
[314399292,1708283442078,-500.0,0.00038566,2]
[314399293,1708283442087,-8318.33840876,0.00038566,2]
[314399294,1708283442097,-412.33,0.0003863,2]
[314399295,1708283442107,-422.92,0.0003863,2]
[314399296,1708283442116,-212.19,0.0003863,2]
[314399297,1708283442126,-343.7,0.0003863,2]
[314399298,1708283442135,-242.48,0.0003863,2]
[314399299,1708283442145,-150.0,0.0003863,2]
[314399300,1708283442154,-449.87,0.0003863,2]
[314399301,1708283442164,-412.33,0.0003863,2]
[314399302,1708283442174,-150.0,0.0003863,2]
[314399303,1708283442184,-150.0,0.0003863,2]
[314399304,1708283442193,-419.19,0.0003863,2]
[314399305,1708283442202,-150.0,0.0003863,2]
[314399306,1708283442212,-150.0,0.0003863,2]
[314399307,1708283442221,-422.92,0.0003863,2]
[314399308,1708283442231,-412.33,0.0003863,2]
[314399309,1708283442241,-150.0,0.0003863,2]
[314399310,1708283442250,-343.7,0.0003863,2]
[314399311,1708283442260,-422.92,0.0003863,2]
[314399312,1708283442269,-412.33,0.0003863,2]
[314399313,1708283442279,-343.7,0.0003863,2]
[314399314,1708283442288,-838.38,0.0003863,2]
[314399315,1708283442297,-422.92,0.0003863,2]
[314399316,1708283442307,-343.7,0.0003863,2]
[314399317,1708283442317,-419.19,0.0003863,2]
[314399318,1708283442326,-412.33,0.0003863,2]
[314399319,1708283442336,-417.71,0.0003863,2]
[314399320,1708283442345,-343.7,0.0003863,2]
[314399321,1708283442355,-419.19,0.0003863,2]
[314399322,1708283442365,-601.73,0.0003863,2]
[314399323,1708283442373,-822.02,0.0003863,2]
[314399324,1708283442383,-352.91,0.0003863,2]
[314399325,1708283442393,-419.19,0.0003863,2]
[314399326,1708283442402,-419.19,0.0003863,2]
[314399327,1708283442412,-419.19,0.0003863,2]
[314399329,1708283442422,-419.19,0.0003863,2]
[314399331,1708283442432,-416.5,0.0003863,2]
[314399333,1708283442441,-156.32,0.00038666,2]
[314399335,1708283442451,-300.0,0.000387,2]
[314399338,1708283442460,-317.36,0.000387,2]
[314399339,1708283442469,-2145.23032,0.0003884,2]
[314399341,1708283442479,-400.0,0.0003887,2]
[314399343,1708283442489,-36456.50462821,0.0003888,2]
[314399344,1708283442499,-528.695,0.00038904,2]
[314399345,1708283442508,-156.32,0.00038922,2]
[314399347,1708283442518,-800.0,0.00038935,2]
[314399349,1708283442527,-2240.8025093,0.00038953,2]
[314399352,1708283442537,-152.71199376,0.00038953,2]
[314399354,1708283442546,-161.28925182,0.00038978,12]
[314399355,1708283442559,-5000.0,0.00038986,2]
[314399356,1708283442570,-5000.0,0.00038986,2]
[314399357,1708283442579,-5000.0,0.00038986,2]
[314399358,1708283442588,-5000.0,0.00038986,2]
[314399359,1708283442599,-1000.0,0.00039,9]
[314399360,1708283442609,-1018.0,0.00039,8]
[314399361,1708283442618,-1007.0,0.00039,8]
[314399362,1708283442629,-300.0,0.00039,40]
[314399363,1708283442640,-3000.0,0.00039,37]
[314399364,1708283442651,-3000.0,0.0003901,37]
[314399365,1708283442661,-5339.175696,0.0003902,37]
[314399366,1708283442670,-166.2,0.00039174,2]
[314399367,1708283442680,-3212.06332917,0.00039175,30]
[314399368,1708283442689,-156.32,0.00039178,2]
[314399369,1708283442699,-492.0,0.00039201,5]
[314399370,1708283442710,-207.0,0.0003921,9]
[314399371,1708283442719,-150.0,0.00039211,2]
[314399372,1708283442729,-542.44322807,0.00039215,2]
[314399373,1708283442739,-5000.0,0.00039246,2]
[314399374,1708283442748,-1000.0,0.0003926,2]
[314399375,1708283442757,-154.28,0.00039269,2]
[314399376,1708283442766,-20449.28004503,0.000393,2]
[314399377,1708283442775,-151.0,0.00039304,7]
[314399378,1708283442785,-405.38,0.00039315,2]
[314399379,1708283442795,-916.32,0.00039315,2]
[314399380,1708283442804,-916.32,0.00039315,2]
[314399381,1708283442813,-405.68,0.00039315,2]
[314399382,1708283442822,-405.68,0.00039315,2]
[314399383,1708283442831,-916.32,0.00039315,2]
[314399384,1708283442841,-916.32,0.00039315,2]
[314399385,1708283442850,-405.68,0.00039315,2]
[314399386,1708283442859,-916.32,0.00039315,2]
[314399387,1708283442868,-404.48,0.00039315,2]
[314399388,1708283442877,-916.32,0.00039315,2]
[314399389,1708283442887,-916.32,0.00039315,2]
[314399390,1708283442896,-916.32,0.00039315,2]
[314399391,1708283442905,-608.05,0.00039315,2]
[314399392,1708283442914,-162.45825751,0.00039319,4]
[314399394,1708283442923,-500.0,0.0003932,2]
[314399396,1708283442933,-500.0,0.00039329,2]
[314399399,1708283442943,-200000.0,0.0003933,30]
[314399400,1708283442952,-49608.20626123,0.0003933,30]
[314399423,1708283443148,-5364.77402899,0.0003933,30]
[314399425,1708283443159,-6392.88961106,0.0003933,30]
[314399427,1708283443171,-842.23467399,0.0003933,30]
[314399430,1708283443182,-3692.87203921,0.0003933,30]
[314399432,1708283443193,-414.07196722,0.0003933,30]
[314399434,1708283443205,-501.1240595,0.0003933,30]
[314399436,1708283443217,-602.41376058,0.0003933,30]
[314399439,1708283443230,-17487.03240127,0.0003933,30]
[314399441,1708283443241,-9784.42183539,0.0003933,30]
[314399445,1708283443265,-9837.75377476,0.0003933,30]
[314399447,1708283443276,-2180.55869615,0.0003933,30]
[314399449,1708283443288,-1150.49999953,0.0003933,30]
[314399451,1708283443300,-615.53488256,0.0003933,30]
[314399454,1708283443311,-91525.61200856,0.0003933,30]
[314399456,1708283443320,-30313.217734,0.00039361,2]
[314399458,1708283443329,-150.0,0.00039366,2]
[314399460,1708283443338,-2229.08,0.0003937,7]
[314399462,1708283443347,-200.0,0.00039382,5]
[314399463,1708283443359,-500.0,0.00039389,2]
[314399465,1708283443368,-4730.67362322,0.00039397,2]
[314399468,1708283443377,-1140.18658763,0.00039398,2]
[314399470,1708283443386,-371.92212684,0.00039399,4]
[314399472,1708283443395,-263.85096324,0.00039399,4]
[314399474,1708283443404,-1030.71805996,0.00039399,4]
[314399475,1708283443414,-500.0,0.00039399,2]
[314399477,1708283443423,-500.0,0.00039399,2]
[314399479,1708283443432,-500.0,0.00039399,2]
[314399481,1708283443441,-632.11428936,0.00039399,2]
[314399483,1708283443451,-150.0,0.00039399,2]
[314399486,1708283443462,-181.13999004,0.00039399,2]
[314399488,1708283443471,-150.0,0.00039399,2]
[314399490,1708283443480,-181.13999004,0.00039399,2]
[314399491,1708283443489,-500.0,0.000394,2]
[314399494,1708283443499,-500.0,0.000394,2]
[314399495,1708283443507,-500.0,0.000394,2]
[314399498,1708283443517,-500.0,0.000394,2]
[314399500,1708283443526,-500.0,0.000394,2]
[314399502,1708283443536,-500.0,0.000394,2]
[314399504,1708283443545,-500.0,0.000394,2]
[314399506,1708283443554,-500.0,0.000394,2]
[314399507,1708283443567,-500.0,0.000394,2]
[314399510,1708283443576,-500.0,0.000394,2]
[314399511,1708283443585,-404814.78587793,0.000394,2]
[314399514,1708283443599,-1219183.2723897,0.000394,2]
[314399516,1708283443608,-200000.0,0.000394,3]
[314399518,1708283443617,-258.25985673,0.000394,2]
[314399520,1708283443626,-156.32,0.00039434,2]
[314399522,1708283443635,-161.28925182,0.00039439,13]
[314399524,1708283443646,-793.0425,0.00039452,2]
[314399526,1708283443655,-1000.0,0.000395,2]
[314399528,1708283443664,-17000.0,0.00039557,2]
[314399530,1708283443674,-5385.58,0.000396,3]
[314399532,1708283443683,-5385.58,0.000396,3]
[314399534,1708283443693,-5385.58,0.000396,3]
[314399536,1708283443702,-5385.58,0.000396,3]
[314399538,1708283443711,-5385.58,0.000396,3]
[314399540,1708283443720,-5385.58,0.000396,3]
[314399542,1708283443729,-5385.58,0.000396,3]
[314399544,1708283443739,-5385.58,0.000396,3]
[314399546,1708283443748,-5385.58,0.000396,3]
[314399548,1708283443757,-5385.58,0.000396,3]
[314399550,1708283443766,-5385.58,0.000396,3]
[314399552,1708283443775,-5385.58,0.000396,3]
[314399554,1708283443784,-1639.45381586,0.000396,3]
[314399556,1708283443796,-3746.12618414,0.000396,3]
[314399558,1708283443805,-5385.58,0.000396,3]
[314399560,1708283443814,-5385.58,0.000396,3]
[314399562,1708283443824,-5385.58,0.000396,3]
[314399564,1708283443834,-5385.58,0.000396,3]
[314399566,1708283443843,-5385.58,0.000396,3]
[314399568,1708283443852,-5385.58,0.000396,3]
[314399570,1708283443861,-5385.58,0.000396,3]
[314399572,1708283443871,-152.37,0.000396,3]
[314399575,1708283443883,-152.37,0.000396,3]
[314399577,1708283443892,-152.37,0.000396,3]
[314399579,1708283443901,-152.37,0.000396,3]
[314399581,1708283443910,-152.37,0.000396,3]
[314399583,1708283443919,-152.37,0.000396,3]
[314399585,1708283443928,-152.37,0.000396,3]
[314399586,1708283443937,-152.37,0.000396,3]
[314399589,1708283443946,-152.37,0.000396,3]
[314399590,1708283443956,-152.37,0.000396,3]
[314399592,1708283443965,-5429.1,0.0003963,2]
[314399595,1708283443975,-2537.6294078,0.0003963,2]
[314399597,1708283443984,-5000.0,0.00039663,2]
[314399599,1708283443994,-400.0,0.0003967,2]
[314399601,1708283444003,-300.0,0.000397,2]
[314399603,1708283444012,-4000.0,0.000397,2]
[314399605,1708283444021,-155.0,0.0003974,2]
[314399607,1708283444030,-150.0,0.00039742,2]
[314399609,1708283444039,-152.71199376,0.00039778,5]
[314399616,1708283444104,-151.0,0.00039852,7]
[314399618,1708283444113,-58000.0,0.000399,5]
[314399620,1708283444122,-4154.58021971,0.000399,2]
[314399622,1708283444131,-5800.0,0.000399,2]
[314399624,1708283444140,-58000.0,0.000399,5]
[314399626,1708283444149,-5800.0,0.000399,2]
[314399628,1708283444158,-157.7559583,0.000399,9]
[314399630,1708283444168,-919.3083714,0.000399,2]
[314399632,1708283444177,-8318.33840876,0.000399,2]
[314399634,1708283444187,-161.28925182,0.000399,13]
[314399636,1708283444196,-3212.06332917,0.000399,31]
[314399638,1708283444205,-961.04996925,0.000399,2]
[314399640,1708283444214,-264.90992483,0.000399,2]
[314399642,1708283444224,-192.73739862,0.000399,2]
[314399644,1708283444232,-1200.18593731,0.000399,2]
[314399646,1708283444242,-1031.57,0.0003993,2]
[314399649,1708283444251,-400.0,0.0003997,2]
[314399651,1708283444260,-400.0,0.0003997,2]
[314399653,1708283444270,-150.0,0.00039972,2]
[314399655,1708283444279,-181.13999004,0.00039972,2]
[314399656,1708283444288,-9504.7569878,0.00039973,2]
[314399658,1708283444297,-7189.4894837,0.00039973,2]
[314399660,1708283444306,-4874.2219796,0.00039973,2]
[314399662,1708283444315,-2558.9544756,0.00039973,2]
[314399664,1708283444325,-243.6869715,0.00039973,2]
[314399667,1708283444334,-1632.2480048,0.00039973,2]
[314399668,1708283444344,-1632.2480048,0.00039973,2]
[314399670,1708283444354,-1632.2480048,0.00039973,2]
[314399672,1708283444365,-1632.2480048,0.00039973,2]
[314399675,1708283444376,-1632.2480048,0.00039973,2]
[314399677,1708283444388,-115122.7203402,0.00039973,2]
[314399678,1708283444398,-87087.3508494,0.00039973,2]
[314399680,1708283444407,-59051.9813586,0.00039973,2]
[314399683,1708283444417,-31016.6118678,0.00039973,2]
[314399685,1708283444428,-2981.242377,0.00039973,2]
[314399686,1708283444438,-654.69,0.00039984,2]
[314399689,1708283444448,-200.0,0.00039987,7]
[314399691,1708283444458,-200.0,0.00039987,8]
[314399692,1708283444468,-300.02,0.00039998,2]
[314399695,1708283444478,-3318.4901846,0.00039998,2]
[314399696,1708283444489,-1632.2480048,0.00039998,2]
[314399698,1708283444498,-142281.10848676,0.00039998,2]
[314399704,1708283444543,-433.82382403,0.00039998,2]
[314399799,1708283445697,-573.27155235,0.00037054,2]
[314399801,1708283445710,-5086.59298646,0.00037054,2]
[314399803,1708283445720,-443.15752021,0.00039998,2]
[314399804,1708283445729,-150.0,0.00039999,2]
[314399806,1708283445738,-181.13999004,0.00039999,2]
[314399808,1708283445747,-181.13999004,0.00039999,2]
[314399809,1708283445757,-150.0,0.00039999,2]
[314399811,1708283445766,-181.13999004,0.00039999,2]
[314399813,1708283445775,-150.0,0.00039999,2]
[314399815,1708283445784,-181.13999004,0.00039999,2]
[314399816,1708283445793,-150.0,0.00039999,2]
[314399817,1708283445802,-181.13999004,0.00039999,2]
[314399818,1708283445811,-150.0,0.00039999,2]
[314399819,1708283445821,-181.13999004,0.00039999,2]
[314399820,1708283445830,-150.0,0.00039999,2]
[314399821,1708283445840,-181.13999004,0.00039999,2]
[314399822,1708283445849,-150.0,0.00039999,2]
[314399823,1708283445858,-181.13999004,0.00039999,2]
[314399824,1708283445868,-150.0,0.00039999,2]
[314399825,1708283445877,-181.13999004,0.00039999,2]
[314399826,1708283445886,-150.0,0.00039999,2]
[314399827,1708283445895,-181.13999004,0.00039999,2]
[314399828,1708283445904,-150.0,0.00039999,2]
[314399829,1708283445914,-181.13999004,0.00039999,2]
[314399830,1708283445923,-150.0,0.00039999,2]
[314399831,1708283445933,-181.13999004,0.00039999,2]
[314399832,1708283445942,-150.0,0.00039999,2]
[314399833,1708283445951,-181.13999004,0.00039999,2]
[314399834,1708283445961,-150.0,0.00039999,2]
[314399835,1708283445973,-181.13999004,0.00039999,2]
[314399836,1708283445982,-150.0,0.00039999,2]
[314399837,1708283445993,-181.13999004,0.00039999,2]
[314399839,1708283446002,-150.0,0.00039999,2]
[314399840,1708283446011,-12846.35680906,0.0004,10]
[314399841,1708283446023,-69299.34604232,0.0004,10]
[314399842,1708283446035,-17854.29714862,0.0004,10]
[314399843,1708283446044,-309.2850835,0.0004,30]
[314399844,1708283446053,-1066.08900007,0.0004,3]
[314399845,1708283446062,-680.13146297,0.0004,30]
[314399846,1708283446079,-473.11364916,0.0004,30]
[314399847,1708283446091,-409.20495899,0.0004,30]
[314399848,1708283446122,-742558.9011506,0.0004,30]
[314399849,1708283446136,-7362.23938458,0.0004,30]
[314399850,1708283446148,-179292.68487695,0.0004,30]
[314399851,1708283446159,-838.96810783,0.0004,30]
[314399852,1708283446171,-229547.05730802,0.0004,30]
[314399853,1708283446182,-287023.73749962,0.0004,30]
[314399854,1708283446194,-147940.0685229,0.0004,30]
[314399855,1708283446206,-16264.00642513,0.0004,30]
[314399857,1708284020277,926.4658,0.00024898,14]
[314399858,1708284275309,230.25,0.00025703,120]
[314399873,1708284632006,-306.41432609,0.00024898,2]
[314399910,1708284637824,-108.32709648,0.00024898,2]
[314399911,1708284637834,-2476.10789651,0.00024899,2]
[314399912,1708284637846,-431.95013453,0.00024899,2]
[314399913,1708284637996,-2882.94196896,0.00024899,2]
[314399914,1708284638006,-534.19955008,0.000249,2]
[314399915,1708284638016,-550.0,0.00025,3]
[314399916,1708284638025,-534.19954994,0.00025689,2]
[314399917,1708284638035,-534.19954994,0.00026479,2]
[314399918,1708284638044,-600.0,0.00027,3]
[314399919,1708284638054,-534.19954994,0.00027268,2]
[314399920,1708284638063,-200.65854675,0.00028,2]
[314399921,1708284638073,-150.0,0.00028056,2]
[314399922,1708284638082,-534.19954994,0.00028058,2]
[314399923,1708284638091,-150.99,0.00028058,2]
[314399924,1708284638100,-150.99,0.00028058,2]
[314399925,1708284638110,-2185.79,0.00028058,2]
[314399926,1708284638121,-534.19954994,0.00028847,2]
[314399927,1708284638130,-650.0,0.00029,3]
[314399928,1708284638139,-534.19954994,0.00029637,2]
[314399929,1708284638148,-534.19954994,0.00030426,2]
[314399930,1708284638161,-210.0,0.00030862,2]
[314399931,1708284638170,-534.19954994,0.00031216,2]
[314399932,1708284638179,-534.19954994,0.00032005,2]
[314399933,1708284638188,-534.19954994,0.00032795,2]
[314399934,1708284638197,-207.0,0.0003324,2]
[314399935,1708284638207,-534.19954994,0.00033584,2]
[314399936,1708284638216,-719.48,0.00033624,2]
[314399938,1708284638225,-331.9904,0.000339,2]
[314399940,1708284638235,-155.0,0.00034,4]
[314399942,1708284638244,-534.19954994,0.00034374,2]
[314399943,1708284638253,-158.166396,0.00034881,2]
[314399945,1708284638262,-534.19954994,0.00035163,2]
[314399947,1708284638271,-500.0,0.00035309,2]
[314399949,1708284638280,-200.0,0.00035338,2]
[314399950,1708284638289,-5733.19,0.0003534,2]
[314399952,1708284638299,-680.0,0.00035456,2]
[314399954,1708284638308,-436.46,0.00035628,2]
[314399956,1708284638317,-719.48,0.00035888,2]
[314399958,1708284638326,-534.19954994,0.00035953,2]
[314399960,1708284638336,-493.597711,0.00036,4]
[314399961,1708284638344,-534.19954994,0.00036742,2]
[314399963,1708284638354,-666.0,0.00036799,2]
[314399965,1708284638363,-1000.0,0.00037,2]
[314399967,1708284638373,-207.0,0.00037063,10]
[314399969,1708284638382,-534.19954994,0.00037532,2]
[314399971,1708284638392,-320.0,0.0003777,2]
[314399973,1708284638401,-481.31,0.000378,2]
[314399974,1708284638412,-3611.56977341,0.00037891,7]
[314399976,1708284638421,-2306.02930764,0.00037891,7]
[314399978,1708284638431,-653.01465382,0.00037891,3]